fUSD/lending_fUSD_20240331
["ID","MTS","AMOUNT","RATE_DAILY","PERIOD"]
[321130404,1711901502251,-2308.38,0.00060821,120]
[321130405,1711901502266,-1843.78,0.00060821,120]
[321130406,1711901502280,-500.0,0.00060821,120]
[321130407,1711901502295,-304.12,0.00060821,120]
[321130408,1711901502309,-1933.04,0.00060821,120]
[321130409,1711901502483,-155.54,0.00060821,120]
[321130410,1711901502494,-925.52,0.00060821,120]
[321130411,1711901502504,-4054.58,0.00060821,120]
[321130412,1711901502513,-3182.14,0.00060821,120]
[321130413,1711901502522,-1284.39,0.00060821,120]
[321130414,1711901502531,-9137.65,0.00060821,120]
[321130415,1711901502542,-731.7,0.00060821,120]
[321130416,1711901502552,-9984.85,0.00060821,120]
[321130417,1711901502562,-505.42,0.00060821,120]
[321130418,1711901502571,-5520.93230954,0.00060852,120]
[321130419,1711901502580,-1000.0,0.00060955,120]
[321130420,1711901502590,-711.97298022,0.00060997,40]
[321130421,1711901502599,-233.0,0.00061,115]
[321130422,1711901502609,-574.97478898,0.00061014,120]
[321130423,1711901502622,-231.65550776,0.00061014,120]
[321130424,1711901502631,-231.25209964,0.00061014,120]
[321130425,1711901502640,-4606.0,0.00061051,117]
[321130426,1711901502651,-1474.26,0.00061095,120]
[321130427,1711901502660,-556.17,0.00061095,120]
[321130428,1711901502671,-956.55,0.00061095,120]
[321130429,1711901502682,-882.89,0.00061095,120]
[321130430,1711901502693,-859.95,0.00061095,120]
[321130431,1711901502703,-737.31918287,0.00061095,120]
[321130432,1711901502712,-759.27,0.00061095,120]
[321130433,1711901502721,-880.7,0.00061095,120]
[321130434,1711901502730,-509.89,0.00061095,120]
[321130435,1711901502739,-190.19,0.00061095,120]
[321130436,1711901502748,-583.31,0.00061095,120]
[321130437,1711901502758,-502.43,0.00061095,120]
[321130438,1711901502767,-780.31,0.00061095,120]
[321130439,1711901502777,-860.2,0.00061095,120]
[321130440,1711901502786,-500.0,0.00061095,120]
[321130441,1711901502795,-838.21,0.00061095,120]
[321130442,1711901502804,-721.32,0.00061095,120]
[321130443,1711901502814,-586.15,0.00061095,120]
[321130444,1711901502824,-1795.89,0.00061095,21]
[321130445,1711901502834,-1222.56,0.00061095,120]
[321130446,1711901502843,-589.18,0.00061095,120]
[321130447,1711901502853,-1633.69,0.00061095,120]
[321130448,1711901502864,-2610.31737229,0.00061095,120]
[321130449,1711901502873,-957.8,0.00061095,120]
[321130450,1711901502883,-832.93562623,0.00061095,120]
[321130451,1711901502892,-814.34745315,0.00061095,120]
[321130452,1711901502902,-581.23,0.00061095,120]
[321130453,1711901502911,-2279.880001,0.00061095,120]
[321130454,1711901502921,-1846.69,0.00061095,120]
[321130455,1711901502930,-833.41,0.00061095,120]
[321130456,1711901502939,-5170.49,0.00061095,120]
[321130457,1711901502949,-2760.23,0.00061095,120]
[321130458,1711901502958,-1734.6,0.00061095,120]
[321130459,1711901502968,-8725.23,0.00061095,120]
[321130460,1711901502977,-1268.66,0.00061095,120]
[321130461,1711901502987,-1226.95,0.00061095,120]
[321130462,1711901502996,-4548.77598065,0.00061095,120]
[321130463,1711901503005,-1480.09375955,0.00061095,120]
[321130464,1711901503015,-1697.54,0.00061095,120]
[321130465,1711901503024,-2334.45,0.00061095,120]
[321130466,1711901503033,-2071.18,0.00061095,120]
[321130467,1711901503042,-475.62986402,0.00061095,120]
[321130468,1711901503051,-1307.14745863,0.00061095,120]
[321130469,1711901503061,-2607.01,0.00061095,120]
[321130470,1711901503070,-1383.82908082,0.00061095,120]
[321130471,1711901503079,-3025.68,0.00061095,120]
[321130472,1711901503088,-555.11573167,0.00061095,120]
[321130473,1711901503098,-5933.54814711,0.00061095,120]
[321130474,1711901503110,-4835.78,0.00061095,120]
[321130475,1711901503119,-1114.17,0.00061095,120]
[321130476,1711901503128,-1551.36903303,0.00061095,120]
[321130477,1711901503137,-1225.55,0.00061095,120]
[321130478,1711901503146,-226.37,0.00061095,120]
[321130479,1711901503157,-1642.45,0.00061095,120]
[321130480,1711901503167,-1400.98,0.00061095,120]
[321130481,1711901503176,-5107.97,0.00061095,120]
[321130482,1711901503185,-7108.48,0.00061095,120]
[321130483,1711901503194,-1267.5,0.00061095,120]
[321130484,1711901503203,-1487.58,0.00061095,120]
[321130485,1711901503213,-977.9,0.00061095,120]
[321130486,1711901503222,-2308.5,0.00061095,120]
[321130487,1711901503231,-1843.79,0.00061095,120]
[321130488,1711901503240,-251.28477749,0.00061095,120]
[321130489,1711901503249,-1933.15,0.00061095,120]
[321130490,1711901503259,-925.52,0.00061095,120]
[321130491,1711901503268,-4054.69483976,0.00061095,120]
[321130492,1711901503278,-3182.33,0.00061095,120]
[321130493,1711901503287,-1284.53,0.00061095,120]
[321130494,1711901503296,-9137.67,0.00061095,120]
[321130495,1711901503306,-731.8,0.00061095,120]
[321130496,1711901503315,-505.45,0.00061095,120]
[321130497,1711901503324,-9985.0188,0.00061095,120]
[321130498,1711901503333,-151.0,0.00061233,120]
[321130499,1711901503342,-161.37966255,0.0006125,120]
[321130500,1711901503352,-36931.22745476,0.0006137,10]
[321130501,1711901503362,-153.89085593,0.00061392,120]
[321130502,1711901503371,-233.0,0.000615,116]
[321130503,1711901503380,-151.0,0.00061507,120]
[321130504,1711901503389,-574.97478898,0.00061512,120]
[321130505,1711901503398,-231.65550776,0.00061512,120]
[321130506,1711901503407,-156.88772141,0.00061512,120]
[321130507,1711901503416,-231.25209964,0.00061512,120]
[321130508,1711901503426,-157.30690024,0.00061531,120]
[321130509,1711901503435,-551.29,0.00061619,2]
[321130510,1711901503445,-161.37966255,0.00061624,120]
[321130511,1711901503454,-780.06867935,0.00061643,120]
[321130512,1711901503462,-999.0,0.0006175,120]
[321130513,1711901503471,-151.0,0.00061863,120]
[321130514,1711901503481,-150.0,0.00061964,120]
[321130515,1711901503490,-1000000.0,0.00062,60]
[321130516,1711901503499,-1828640.75,0.00062,60]
[321130517,1711901503508,-314.094555,0.00062,120]
[321130518,1711901503517,-233.0,0.00062,117]
[321130519,1711901503526,-574.97478898,0.00062011,120]
[321130520,1711901503536,-231.65550776,0.00062011,120]
[321130521,1711901503545,-231.25209964,0.00062011,120]
[321130522,1711901503554,-154.04323163,0.00062041,120]
[321130523,1711901503563,-1132.656,0.00062053,120]
[321130524,1711901503572,-151.94637423,0.00062099,120]
[321130525,1711901503581,-156.88772141,0.00062344,120]
[321130526,1711901503590,-151.0,0.00062493,120]
[321130527,1711901503599,-233.0,0.000625,118]
[321130528,1711901503609,-574.97478898,0.0006251,120]
[321130529,1711901503622,-231.65550776,0.0006251,120]
[321130530,1711901503631,-231.25209964,0.0006251,120]
[321130531,1711901503640,-162.63,0.00062685,120]
[321130532,1711901503649,-999.0,0.00062725,120]
[321130533,1711901503658,-155.39690537,0.00062838,120]
[321130534,1711901503667,-711.97298022,0.000629,42]
[321130535,1711901503676,-200.0,0.00063,120]
[321130536,1711901503685,-1000000.0,0.00063,60]
[321130537,1711901503695,-153128.24590107,0.00063,120]
[321130538,1711901503705,-233.0,0.00063,119]
[321130539,1711901503714,-574.97478898,0.00063009,120]
[321130540,1711901503723,-231.65550776,0.00063009,120]
[321130541,1711901503732,-231.25209964,0.00063009,120]
[321130542,1711901503741,-3463.39,0.0006303,120]
[321130543,1711901503751,-151.0,0.00063123,120]
[321130544,1711901503759,-156.88772141,0.00063175,120]
[321130545,1711901503769,-3717.48,0.000632,120]
[321130546,1711901503778,-124921.66629502,0.000633,120]
[321130547,1711901503787,-151.0,0.00063425,120]
[321130548,1711901503796,-233.0,0.000635,120]
[321130549,1711901503805,-157.69921316,0.00063505,120]
[321130550,1711901503814,-574.97478898,0.00063508,120]
[321130551,1711901503825,-231.65550776,0.00063508,120]
[321130552,1711901503834,-231.25209964,0.00063508,120]
[321130553,1711901503843,-999.0,0.000637,120]
[321130554,1711901503852,-151.0,0.00063753,120]
[321130555,1711901503862,-7236.12352633,0.000638,120]
[321130556,1711901503871,-551.29,0.00063883,2]
[321130557,1711901503881,-395.80391734,0.000639,2]
[321130558,1711901503890,-6920.72862938,0.0006392,2]
[321130559,1711901503901,-92713.79892323,0.00064,30]
[321130560,1711901503911,-6132.87838307,0.00064,2]
[321130561,1711901503922,-1000000.0,0.00064,60]
[321130562,1711901503932,-2000.0,0.00064,7]
[321130563,1711901503942,-8998.65053575,0.00064,30]
[321130564,1711901503952,-21528.35132554,0.00064,12]
[321130565,1711901503961,-233.0,0.00064,120]
[321130566,1711901503970,-574.97478898,0.00064006,120]
[321130567,1711901503979,-231.65550776,0.00064006,120]
[321130568,1711901503989,-156.88772141,0.00064006,120]
[321130569,1711901503998,-231.25209964,0.00064006,120]
[321130570,1711901504007,-300.0,0.000641,120]
[321130571,1711901504016,-4935.0,0.00064139,117]
[321130572,1711901504025,-300.0,0.000643,120]
[321130573,1711901504034,-151.0,0.00064384,120]
[321130574,1711901504043,-155.87930185,0.00064389,120]
[321130575,1711901504053,-440.84077887,0.000644,90]
[321130576,1711901504062,-13813.8019,0.0006449,16]
[321130577,1711901504070,-10057.19804853,0.000645,120]
[321130578,1711901504080,-233.0,0.000645,120]
[321130579,1711901504089,-300.0,0.000645,120]
[321130580,1711901504098,-574.97478898,0.00064505,120]
[321130581,1711901504107,-231.65550776,0.00064505,120]
[321130582,1711901504116,-231.25209964,0.00064505,120]
[321130583,1711901504125,-999.0,0.00064675,120]
[321130584,1711901504134,-300.0,0.000647,120]
[321130585,1711901504143,-13000.0,0.0006478,16]
[321130586,1711901504153,-42574.70567848,0.000648,5]
[321130587,1711901504270,-31600.07249411,0.0006483,120]
[321130588,1711901504279,-156.88772141,0.00064838,120]
[321130589,1711901504288,-56367.66842478,0.000649,120]
[321130590,1711901504297,-300.0,0.000649,120]
[321130591,1711901504306,-13000.0,0.0006498,16]
[321130592,1711901504316,-13832.36434942,0.00065,120]
[321130593,1711901504325,-29140.33252613,0.00065,120]
[321130594,1711901504334,-35199.63510636,0.00065,120]
[321130595,1711901504342,-643419.73265013,0.00065,60]
[321130596,1711901504568,-356580.26734987,0.00065,60]
[321130597,1711901504577,-1689137.28841598,0.00065,120]
[321130598,1711901504586,-618249.29166233,0.00065,60]
[321130599,1711901504595,-4001.96455422,0.00065,120]
[321130600,1711901504603,-27979.86374242,0.00065,120]
[321130601,1711901504615,-3758.4003667,0.00065,120]
[321130602,1711901504625,-23475.40253915,0.00065,30]
[321130603,1711901504635,-288.37842307,0.00065,31]
[321130604,1711901504647,-20234.38836289,0.00065,8]
[321130605,1711901504659,-233.0,0.00065,120]
[321130606,1711901504668,-2500.0,0.00065,120]
[321130607,1711901504677,-574.97478898,0.00065004,120]
[321130608,1711901504687,-231.65550776,0.00065004,120]
[321130609,1711901504697,-231.25209964,0.00065004,120]
[321130610,1711901504707,-151.0,0.00065014,120]
[321130611,1711901504716,-162.85775373,0.00065082,120]
[321130612,1711901504725,-299.99999604,0.000651,120]
[321130613,1711901504734,-300.0,0.000653,120]
[321130614,1711901504743,-154.52845761,0.00065325,120]
[321130615,1711901504753,-151.0,0.00065342,120]
[321130616,1711901504762,-162.63,0.00065425,120]
[321130617,1711901504770,-1358.15356004,0.00065467,2]
[321130618,1711901504780,-25001.74426984,0.000655,120]
[321130619,1711901504789,-233.0,0.000655,120]
[321130620,1711901504798,-574.97478898,0.00065503,120]
[321130621,1711901504807,-231.65550776,0.00065503,120]
[321130622,1711901504815,-231.25209964,0.00065503,120]
[321130623,1711901504827,-11782.37993842,0.000656,30]
[321130624,1711901504837,-150.0,0.00065617,30]
[321130625,1711901504846,-152.0,0.00065632,3]
[321130626,1711901504855,-151.0,0.00065644,120]
[321130627,1711901504865,-999.0,0.0006565,120]
[321130628,1711901504874,-156.88772141,0.00065669,120]
[321130629,1711901504883,-186.5973902,0.00065699,30]
[321130630,1711901504892,-1358.15356004,0.00065708,2]
[321130631,1711901504901,-1000.0,0.0006574,2]
[321130632,1711901504910,-1000.0,0.0006574,2]
[321130633,1711901504919,-1000.0,0.0006574,2]
[321130634,1711901504928,-1000.0,0.0006574,2]
[321130635,1711901504936,-1000.0,0.0006574,2]
[321130636,1711901504945,-1000.0,0.0006574,2]
[321130637,1711901504954,-1000.0,0.0006574,2]
[321130638,1711901504963,-1000.0,0.0006574,2]
[321130639,1711901504972,-1000.0,0.0006574,2]
[321130640,1711901504981,-1000.0,0.0006574,2]
[321130641,1711901504990,-1000.0,0.0006574,2]
[321130642,1711901504999,-1000.0,0.0006574,2]
[321130643,1711901505008,-1000.0,0.0006574,2]
[321130644,1711901505017,-1000.0,0.0006574,2]
[321130645,1711901505026,-1000.0,0.0006574,2]
[321130646,1711901505035,-1000.0,0.0006574,2]
[321130647,1711901505044,-1000.0,0.0006574,2]
[321130648,1711901505053,-1000.0,0.0006574,2]
[321130649,1711901505062,-1000.0,0.0006574,2]
[321130650,1711901505071,-1000.0,0.0006574,2]
[321130651,1711901505080,-489.66840981,0.0006574,2]
[321130652,1711901505089,-150.0,0.00065879,60]
[321130653,1711901505099,-711.55753,0.0006591,120]
[321130654,1711901505108,-150.0,0.00065946,60]
[321130655,1711901505119,-569240.82862442,0.00065998,120]
[321130656,1711901505132,-9168.675097,0.00065998,120]
[321130657,1711901505143,-41389.92613931,0.00065998,120]
[321130658,1711901505203,-500.0,0.00054794,120]
[321130659,1711901505213,-500.0,0.00055068,120]
[321130660,1711901505222,-172.2238,0.00055342,120]
[321130661,1711901505289,-1067.16967115,0.000509,120]
[321130662,1711901505298,-327.7762,0.00055342,120]
[321130663,1711901505308,-500.0,0.00055616,120]
[321130664,1711901505317,-500.0,0.0005589,120]
[321130665,1711901505326,-467.6,0.00056164,120]
[321130666,1711901505335,-754.31149994,0.0005705,120]
[321130667,1711901505347,-1274.97603642,0.0005705,120]
[321130668,1711901505361,-470.71246464,0.0005705,120]
[321130669,1711901505370,-974.58,0.00060821,120]
[321130670,1711901505379,-974.71,0.00061095,120]
[321130671,1711901505389,-551669.89374963,0.00065998,120]
[321130672,1711901505400,-14085.92592453,0.00065998,120]
[321130673,1711901505499,-219.866182,0.000517,120]
[321130674,1711901505508,-219.866182,0.000538,120]
[321130675,1711901505518,-219.866182,0.00054794,120]
[321130676,1711901505527,-219.866182,0.00055068,120]
[321130677,1711901505536,-219.866182,0.00055616,120]
[321130678,1711901505545,-219.866182,0.00056712,120]
[321130679,1711901505555,-18934.38759148,0.00065998,120]
[321130738,1711902632331,-350.0,0.00033,3]
[321130739,1711902632341,-576.0,0.00034999,2]
[321130740,1711902632350,-400.0,0.00035,3]
[321130741,1711902632359,-450.0,0.00037,3]
[321130742,1711902632368,-500.0,0.00039,3]
[321130743,1711902632378,-1868.26708576,0.000402,2]
[321130744,1711902632389,-471.83582452,0.000402,2]
[321130745,1711902632399,-166.66,0.00040274,2]
[321130746,1711902632408,-347.96815075,0.00041,3]
[321130747,1711902632425,-202.03184925,0.00041,3]
[321130748,1711902632434,-182.0,0.00041096,2]
[321130749,1711902632443,-160.66751414,0.00042239,2]
[321130750,1711902632453,-946.0,0.00042339,30]
[321130751,1711902632462,-956.434462,0.00042339,2]
[321130752,1711902632472,-500.0,0.00042339,120]
[321130753,1711902632481,-500.0,0.00042339,120]
[321130754,1711902632490,-500.0,0.00042339,120]
[321130755,1711902632499,-500.0,0.00042339,120]
[321130756,1711902632508,-500.0,0.00042339,120]
[321130757,1711902632518,-500.0,0.00042339,120]
[321130758,1711902632527,-500.0,0.00042339,120]
[321130759,1711902632537,-500.0,0.00042339,120]
[321130760,1711902632546,-536.33372902,0.00042339,120]
[321130761,1711902632556,-600.0,0.00043,3]
[321130762,1711902632566,-160.55364453,0.00043908,30]
[321130763,1711902632575,-150.0,0.00044,44]
[321130764,1711902632584,-499.99,0.00044,2]
[321130765,1711902632594,-2342.52,0.00044,2]
[321130766,1711902632604,-151.94637424,0.00044156,30]
[321130767,1711902632613,-155.39690537,0.00044426,30]
[321130768,1711902632623,-352.55,0.00044519,2]
[321130769,1711902632633,-157.60626266,0.00044773,30]
[321130770,1711902632642,-155.39690537,0.00044958,30]
[321130771,1711902632652,-5000.0,0.00044986,4]
[321130772,1711902632661,-650.0,0.00045,3]
[321130773,1711902632670,-328.07527769,0.00045,4]
[321130774,1711902632680,-156.73066869,0.00045019,30]
[321130775,1711902632689,-155.39690537,0.00045742,30]
[321130776,1711902632698,-155.39690537,0.00045825,30]
[321130777,1711902632707,-1173.67,0.00045844,120]
[321130778,1711902632716,-179.0,0.00045966,2]
[321130779,1711902632726,-1468.86040058,0.00046506,120]
[321130780,1711902632735,-18184.05,0.00046508,2]
[321130781,1711902632745,-150.63,0.000466,2]
[321130782,1711902632754,-1309.13,0.00046702,2]
[321130783,1711902632763,-2269.17,0.0004671,30]
[321130784,1711902632773,-352.55,0.00046783,2]
[321130786,1711902632782,-700.0,0.00047,3]
[321130788,1711902632791,-155.39690537,0.00047237,30]
[321130790,1711902632800,-1077.66669351,0.00047335,2]
[321130792,1711902632809,-26857.57023081,0.00047345,2]
[321130793,1711902632821,-669.25583994,0.00047345,2]
[321130794,1711902632832,-920.51695192,0.00047345,2]
[321130795,1711902632842,-2237.59721274,0.00047435,2]
[321130796,1711902632853,-9635.8478662,0.00047435,2]
[321130797,1711902632864,-7294.57469422,0.00047435,2]
[321130798,1711902632875,-3291.45814356,0.00047435,2]
[321130799,1711902632886,-399.11744912,0.00047435,2]
[321130800,1711902632897,-1079.33840874,0.00047435,2]
[321130801,1711902632906,-2282.70352822,0.00047445,2]
[321130802,1711902632917,-4000.0,0.00047445,2]
[321130803,1711902632930,-3918.79999998,0.00047445,2]
[321130805,1711902638348,-723.53827131,0.00047445,2]
[321130806,1711902638563,-26631.89820049,0.00047445,2]
[321130807,1711902638573,-163.82,0.00047619,2]
[321130808,1711902638583,-243.62,0.00047749,2]
[321130809,1711902638592,-151.0,0.00048,120]
[321130810,1711902638602,-2308.93,0.00048099,120]
[321130811,1711902638611,-320.46,0.00048168,2]
[321130812,1711902638620,-152.73,0.00048352,15]
[321130813,1711902638629,-1077.66669351,0.0004837,2]
[321130814,1711902638639,-150.63,0.00048571,2]
[321130815,1711902638648,-28447.34302266,0.00048623,2]
[321130816,1711902638657,-1283.0,0.000487,117]
[321130817,1711902638666,-160.66751413,0.00048741,2]
[321130818,1711902638675,-151.0,0.00048849,120]
[321130819,1711902638684,-1200.0,0.00049,4]
[321130820,1711902638693,-696.13981054,0.00049,30]
[321130821,1711902638703,-750.0,0.00049,3]
[321130822,1711902638712,-352.55,0.00049046,2]
[321130823,1711902638721,-712.87217546,0.00049313,4]
[321130824,1711902638730,-2344.6939665,0.0004939,3]
[321130825,1711902638740,-254.9227,0.0004939,2]
[321130826,1711902638749,-675.5295,0.0004939,2]
[321130827,1711902638758,-1077.66669351,0.00049404,2]
[321130828,1711902638767,-1309.13,0.00049441,2]
[321130829,1711902638776,-26347.40328141,0.0004949,10]
[321130830,1711902638785,-32878.57962282,0.00049504,2]
[321130831,1711902638794,-151.0,0.00049699,120]
[321130832,1711902638803,-2472.4552,0.0004979,2]
[321130833,1711902638812,-2500.0,0.000498,2]
[321130834,1711902638821,-28447.34302266,0.000499,2]
[321130835,1711902638831,-651.0,0.0005,9]
[321130836,1711902638841,-27063.55526501,0.0005,4]
[321130837,1711902638849,-151.0,0.0005,120]
[321130838,1711902638858,-2844.03657921,0.0005,10]
[321130839,1711902638867,-5000.0,0.0005,2]
[321130840,1711902638876,-234.65,0.00050138,2]
[321130841,1711902638886,-188.98,0.00050326,30]
[321130843,1711902638895,-150.63,0.00050542,120]
[321130845,1711902638903,-151.0,0.00050548,120]
[321130847,1711902638912,-2344.69396651,0.000507,4]
[321130849,1711902638921,-155.0,0.00050898,5]
[321130851,1711902638930,-5384.20448026,0.00050899,2]
[321130852,1711902638942,-693.66028639,0.000509,120]
[321130854,1711902638951,-693.66028624,0.000509,120]
[321130856,1711902638960,-693.66028624,0.000509,120]
[321130858,1711902638970,-1611.1041,0.00050935,2]
[321130860,1711902638980,-1000.0,0.00050935,2]
[321130862,1711902638989,-161.37966255,0.00050971,60]
[321130864,1711902638999,-800.0,0.00051,3]
[321130865,1711902639008,-352.55,0.0005131,2]
[321130866,1711902639018,-32878.57962279,0.00051392,2]
[321130867,1711902639027,-151.0,0.00051397,120]
[321130868,1711902639036,-168.89,0.00051459,2]
[321130869,1711902639045,-1000.0,0.00051459,120]
[321130870,1711902639054,-693.66028624,0.00051597,120]
[321130871,1711902639063,-2822.6,0.00051788,117]
[321130872,1711902639072,-180.0,0.0005186,120]
[321130873,1711902639081,-1309.13,0.00052181,2]
[321130874,1711902639090,-151.0,0.00052247,120]
[321130875,1711902639100,-693.66028624,0.00052365,120]
[321130876,1711902639109,-155.17450903,0.00052378,60]
[321130877,1711902639118,-5388.5848,0.0005242,2]
[321130878,1711902639127,-150.63,0.00052513,120]
[321130879,1711902639137,-151.0,0.00052658,120]
[321130880,1711902639146,-152.73,0.00052918,120]
[321130881,1711902639155,-850.0,0.00053,3]
[321130882,1711902639164,-151.0,0.00053096,120]
[321130883,1711902639173,-693.66028624,0.00053134,120]
[321130884,1711902639182,-32878.57962279,0.00053281,2]
[321130885,1711902639194,-352.55,0.00053574,2]
[321130886,1711902639203,-5645.2,0.000537,117]
[321130887,1711902639212,-387.14158954,0.0005375,30]
[321130888,1711902639221,-395.80391734,0.000539,2]
[321130889,1711902639230,-693.66028624,0.00053903,120]
[321130890,1711902639240,-151.0,0.00053945,120]
[321130891,1711902639249,-524.0,0.00053973,120]
[321130892,1711902639258,-6159.0634189,0.00054,117]
[321130893,1711902639267,-995.56,0.00054,2]
[321130894,1711902639276,-176398.6479,0.00054431,2]
[321130895,1711902639285,-204.21231274,0.00054474,2]
[321130896,1711902639293,-150.63,0.00054484,120]
[321130897,1711902639302,-525.0,0.00054521,120]
[321130898,1711902639312,-693.66028624,0.00054672,120]
[321130899,1711902639321,-1008.65580963,0.00054793,4]
[321130900,1711902639330,-1973.80964055,0.00054794,120]
[321130901,1711902639339,-500.0,0.00054794,120]
[321130902,1711902639349,-500.0,0.00054794,120]
[321130903,1711902639358,-500.0,0.00054794,120]
[321130904,1711902639367,-451.91,0.00054794,120]
[321130905,1711902639377,-500.0,0.00054794,120]
[321130906,1711902639387,-500.0,0.00054794,120]
[321130907,1711902639396,-500.0,0.00054794,120]
[321130908,1711902639405,-500.0,0.00054794,120]
[321130909,1711902639415,-500.0,0.00054794,120]
[321130910,1711902639424,-500.0,0.00054794,120]
[321130911,1711902639433,-500.0,0.00054794,120]
[321130912,1711902639442,-535.68,0.00054794,120]
[321130913,1711902639451,-320.12296033,0.00054794,120]
[321130914,1711902639461,-500.0,0.00054794,120]
[321130915,1711902639470,-500.0,0.00054794,120]
[321130916,1711902639479,-500.0,0.00054794,120]
[321130917,1711902639488,-500.0,0.00054794,120]
[321130918,1711902639497,-500.0,0.00054794,120]
[321130919,1711902639507,-500.0,0.00054794,120]
[321130920,1711902639516,-500.0,0.00054794,120]
[321130921,1711902639525,-500.0,0.00054794,21]
[321130922,1711902639535,-500.0,0.00054794,120]
[321130923,1711902639544,-500.0,0.00054794,120]
[321130924,1711902639554,-500.0,0.00054794,120]
[321130925,1711902639563,-457.69766363,0.00054794,120]
[321130926,1711902639572,-505.42,0.00054794,120]
[321130927,1711902639581,-500.0,0.00054794,120]
[321130928,1711902639591,-556.04,0.00054794,120]
[321130929,1711902639599,-207.67865281,0.00054794,120]
[321130930,1711902639609,-500.0,0.00054794,120]
[321130931,1711902639618,-500.0,0.00054794,120]
[321130932,1711902639627,-500.0,0.00054794,120]
[321130933,1711902639637,-500.0,0.00054794,120]
[321130934,1711902639646,-500.0,0.00054794,120]
[321130935,1711902639655,-500.0,0.00054794,120]
[321130936,1711902639665,-589.13,0.00054794,120]
[321130937,1711902639675,-500.0,0.00054794,120]
[321130938,1711902639684,-500.0,0.00054794,120]
[321130939,1711902639694,-500.0,0.00054794,120]
[321130940,1711902639703,-509.81,0.00054794,120]
[321130941,1711902639712,-586.0,0.00054794,120]
[321130942,1711902639721,-500.0,0.00054794,120]
[321130943,1711902639730,-500.0,0.00054794,120]
[321130944,1711902639739,-500.0,0.00054794,120]
[321130945,1711902639749,-583.26,0.00054794,120]
[321130946,1711902639758,-502.35,0.00054794,120]
[321130947,1711902639770,-500.0,0.00054794,120]
[321130948,1711902639779,-500.0,0.00054794,120]
[321130949,1711902639789,-239.34,0.00054794,120]
[321130950,1711902639798,-500.0,0.00054794,120]
[321130951,1711902639808,-500.0,0.00054794,120]
[321130952,1711902639817,-500.0,0.00054794,120]
[321130953,1711902639826,-500.0,0.00054794,120]
[321130954,1711902639835,-500.0,0.00054794,120]
[321130955,1711902639845,-500.0,0.00054794,120]
[321130956,1711902639854,-2705.74,0.00054794,120]
[321130957,1711902639863,-151.0,0.00054795,120]
[321130958,1711902639872,-762.0,0.00054795,120]
[321130959,1711902639882,-3079.2,0.00054876,117]
[321130960,1711902639891,-1870.28559156,0.00055,120]
[321130961,1711902639900,-900.0,0.00055,3]
[321130962,1711902639909,-427.1946635,0.00055067,28]
[321130963,1711902639919,-500.0,0.00055068,120]
[321130964,1711902639929,-280.08,0.00055068,120]
[321130965,1711902639939,-360.04,0.00055068,120]
[321130966,1711902639949,-500.0,0.00055068,120]
[321130967,1711902639958,-535.68,0.00055068,120]
[321130968,1711902639968,-474.58,0.00055068,120]
[321130969,1711902639978,-338.17,0.00055068,120]
[321130970,1711902639987,-221.29,0.00055068,120]
[321130971,1711902639997,-500.0,0.00055068,120]
[321130972,1711902640006,-500.0,0.00055068,120]
[321130973,1711902640017,-518.92,0.00055068,120]
[321130974,1711902640027,-500.0,0.00055068,21]
[321130975,1711902640036,-500.0,0.00055068,120]
[321130976,1711902640046,-500.0,0.00055068,120]
[321130977,1711902640055,-456.39,0.00055068,120]